bitfinex/quotes_BTCUSD_20251009
["timestamp","ask_amount","ask_price","bid_price","bid_amount"]
[1760022701027,0.68473991,121410.0,121400.0,0.23888]
[1760022701266,0.35362359,121410.0,121400.0,0.32200206]
[1760022701486,0.35362359,121410.0,121400.0,0.4867467]
[1760022701713,0.35362359,121410.0,121400.0,0.32200206]
[1760022701938,0.35362359,121410.0,121400.0,0.32100206]
[1760022702382,0.35362359,121410.0,121400.0,0.32000206]
[1760022702590,0.65458801,121410.0,121400.0,0.16876206]
[1760022702764,0.65458801,121410.0,121400.0,0.40764206]
[1760022703118,0.65458801,121410.0,121400.0,0.40664206]
[1760022703521,0.65458801,121410.0,121400.0,0.17076206]
[1760022703726,0.65458801,121410.0,121400.0,0.40760206]
[1760022704521,0.35362359,121410.0,121400.0,0.40760206]
[1760022705723,0.35362359,121410.0,121400.0,0.17076206]
[1760022705929,0.35362359,121410.0,121400.0,0.40760206]
[1760022706349,0.65458801,121410.0,121400.0,0.40760206]
[1760022707231,0.65458801,121410.0,121400.0,0.17076206]
[1760022707430,0.65458801,121410.0,121400.0,0.40760206]
[1760022707641,0.65458801,121410.0,121400.0,0.08512206]
[1760022707850,0.65458801,121410.0,121400.0,0.40760206]
[1760022709321,0.35362359,121410.0,121400.0,0.40756206]
[1760022710099,0.35362359,121410.0,121400.0,0.17076206]
[1760022710315,0.35362359,121410.0,121400.0,0.40756206]
[1760022711472,1.00336486,121410.0,121400.0,0.001]
[1760022711633,0.86713151,121410.0,121400.0,0.18196]
[1760022711839,0.86713151,121410.0,121400.0,0.002]
[1760022712127,0.86713151,121410.0,121400.0,0.2378]
[1760022712406,1.20358672,121410.0,121400.0,0.001]
[1760022712650,1.20358672,121410.0,121400.0,0.01752]
[1760022712880,1.29425672,121410.0,121400.0,0.01752]
[1760022713112,1.29425672,121410.0,121400.0,0.003]
[1760022713113,1.31899204,121410.0,121400.0,0.003]
[1760022713337,1.31899204,121410.0,121400.0,0.1036]
[1760022713546,1.28350125,121410.0,121400.0,0.001]
[1760022713765,1.70420344,121410.0,121400.0,0.001]
[1760022714022,1.70420344,121410.0,121400.0,0.002]
[1760022714023,2.03457053,121410.0,121400.0,0.002]
[1760022714236,1.73360611,121410.0,121400.0,0.002]
[1760022714448,1.73360611,121410.0,121400.0,0.001]
[1760022714665,1.81360291,121410.0,121400.0,0.001]
[1760022714877,1.78420024,121410.0,121400.0,0.002]
[1760022715077,1.54740024,121410.0,121400.0,0.001]
[1760022715322,0.53490377,121400.0,121380.0,0.01911468]
[1760022715533,0.64096442,121390.0,121380.0,0.01911468]
[1760022716404,0.64096442,121390.0,121380.0,0.02011468]
[1760022717043,0.30096442,121390.0,121380.0,0.0307352]
[1760022717258,0.46572263,121390.0,121380.0,0.0307352]
[1760022717509,0.30096442,121390.0,121380.0,0.0307352]
[1760022717935,0.19490377,121400.0,121380.0,0.0121352]
[1760022718136,0.30096442,121390.0,121380.0,0.1466552]
[1760022718348,0.30096442,121390.0,121380.0,0.1456552]
[1760022718559,0.30096442,121390.0,121380.0,0.1476552]
[1760022718769,0.30096442,121390.0,121380.0,0.00251468]
[1760022718979,0.34,121390.0,121380.0,0.23383468]
[1760022719189,0.64096442,121390.0,121380.0,0.23483468]
[1760022719772,0.64096442,121390.0,121380.0,0.23383468]
[1760022719987,0.64096442,121390.0,121380.0,0.23483468]
[1760022720210,0.34,121390.0,121380.0,0.25801924]
[1760022720428,0.34,121390.0,121380.0,0.32239674]
[1760022720856,0.34,121390.0,121380.0,0.08563674]
[1760022721331,0.67111632,121390.0,121380.0,0.08563674]
[1760022721552,0.67111632,121390.0,121380.0,0.32491468]
[1760022722239,0.3701519,121390.0,121380.0,0.32491468]
[1760022722441,0.34,121390.0,121380.0,0.57280853]
[1760022722675,0.03715905,121410.0,121380.0,0.58104711]
[1760022722882,0.01242373,121410.0,121390.0,0.09338596]
[1760022723098,0.01242373,121410.0,121400.0,0.23676]
[1760022723313,0.35242373,121410.0,121390.0,0.24788006]
[1760022723535,0.35242373,121410.0,121400.0,0.41075338]
[1760022723750,0.01242373,121410.0,121380.0,0.12651466]
[1760022724027,0.35242373,121410.0,121390.0,0.40552206]
[1760022724240,0.01242373,121410.0,121390.0,0.40552206]
[1760022724454,0.30096442,121400.0,121390.0,0.40552206]
[1760022724870,0.30096442,121400.0,121390.0,0.08312206]
[1760022725054,0.30096442,121400.0,121390.0,0.16876206]
[1760022725526,0.30096442,121400.0,121390.0,0.40652206]
[1760022725745,0.33111632,121400.0,121390.0,0.08312206]
[1760022726177,0.86840718,121400.0,121390.0,0.002]
[1760022726392,0.79682538,121400.0,121390.0,0.17928]
[1760022726604,0.63208074,121400.0,121390.0,0.17928]
[1760022727248,0.3701519,121390.0,121380.0,0.08256427]
[1760022727474,0.67111632,121390.0,121380.0,0.40240633]
[1760022727698,0.3701519,121390.0,121380.0,0.31984206]
[1760022727938,0.67111632,121390.0,121380.0,0.40548206]
[1760022728563,0.67111632,121390.0,121380.0,0.40748206]
[1760022728798,0.67111632,121390.0,121380.0,0.40848206]
[1760022729483,0.67111632,121390.0,121380.0,0.17176206]
[1760022729690,0.67111632,121390.0,121380.0,0.40848206]
[1760022730345,0.0301519,121390.0,121380.0,0.40848206]
[1760022730606,0.3701519,121390.0,121380.0,0.40848206]
[1760022732874,0.34,121390.0,121380.0,0.40848206]
[1760022734706,0.64096442,121390.0,121380.0,0.40848206]
[1760022734913,0.64096442,121390.0,121380.0,0.40844206]
[1760022736705,0.64096442,121390.0,121380.0,0.35844206]
[1760022737357,0.0301519,121400.0,121380.0,0.12176206]
[1760022737570,0.34,121390.0,121380.0,0.35844206]
[1760022738456,0.64096442,121390.0,121380.0,0.35644206]
[1760022738658,0.34,121390.0,121380.0,0.35644206]
[1760022738871,0.64096442,121390.0,121380.0,0.35744206]
[1760022739299,0.64096442,121390.0,121380.0,0.35644206]
[1760022739653,0.64096442,121390.0,121380.0,0.35744206]
[1760022740259,1.13683895,121390.0,121380.0,0.002]
[1760022740437,1.18774895,121390.0,121380.0,0.002]
[1760022740644,1.30220895,121390.0,121380.0,0.002]
[1760022740869,1.94063114,121390.0,121380.0,0.002]
[1760022741064,2.02062794,121390.0,121380.0,0.002]
[1760022741312,2.09476917,121390.0,121380.0,0.002]
[1760022741511,1.85808917,121390.0,121380.0,0.001]
[1760022741735,0.53492369,121380.0,121370.0,0.00045056]
[1760022741941,1.57779472,121380.0,121370.0,0.00045056]
[1760022742150,2.73625478,121380.0,121370.0,0.00045056]
[1760022742308,3.05853478,121380.0,121370.0,0.00045056]
[1760022742514,2.15564152,121380.0,121370.0,0.00045056]
[1760022743103,1.83336152,121380.0,121370.0,0.00145056]
[1760022743366,3.05853478,121380.0,121370.0,0.00145056]
[1760022743514,3.05853478,121380.0,121370.0,0.00045056]
[1760022744194,1.62870472,121380.0,121370.0,0.00045056]
[1760022744520,1.86534472,121380.0,121370.0,0.00045056]
[1760022744729,1.94060472,121380.0,121370.0,0.00045056]
[1760022744937,1.94060472,121380.0,121370.0,0.00145056]
[1760022745369,1.70396472,121380.0,121370.0,0.00145056]
[1760022745523,2.02064152,121380.0,121370.0,0.00145056]
[1760022746480,2.02060663,121380.0,121370.0,0.00145056]
[1760022747093,2.03532663,121380.0,121370.0,0.00145056]
[1760022747513,2.03532663,121380.0,121370.0,0.0019653]
[1760022748364,1.79864663,121380.0,121370.0,0.0019653]
[1760022748530,2.03532663,121380.0,121370.0,0.0019653]
[1760022750892,1.95532983,121380.0,121370.0,0.0019653]
[1760022753578,1.71864983,121380.0,121370.0,0.0019653]
[1760022753799,1.95532983,121380.0,121370.0,0.0019653]
[1760022754001,1.71864983,121380.0,121370.0,0.0019653]
[1760022754242,1.95532983,121380.0,121370.0,0.0019653]
[1760022754503,2.10883394,121380.0,121370.0,0.0019653]
[1760022755138,2.15823394,121380.0,121370.0,0.0019653]
[1760022755352,1.89215127,121380.0,121370.0,0.0019653]
[1760022755735,2.12883127,121380.0,121370.0,0.0019653]
[1760022758867,1.89215127,121380.0,121370.0,0.0019653]
[1760022759070,2.12879127,121380.0,121370.0,0.0019653]
[1760022759652,2.14405262,121380.0,121370.0,0.0019653]
[1760022760224,1.59869203,121380.0,121370.0,0.0019653]
[1760022760382,1.36205203,121380.0,121370.0,0.0019653]
[1760022760584,1.59869203,121380.0,121370.0,0.0019653]
[1760022761367,1.36205203,121380.0,121370.0,0.0019653]
[1760022761568,1.39403523,121380.0,121370.0,0.0019653]
[1760022761766,0.88645242,121380.0,121370.0,0.0019653]
[1760022761988,0.61334101,121380.0,121370.0,0.0019653]
[1760022762199,0.68745611,121380.0,121370.0,0.0019653]
[1760022762433,0.06891917,121380.0,121370.0,0.0019653]
[1760022762610,0.44124539,121380.0,121370.0,0.0019653]
[1760022762838,0.81139729,121380.0,121370.0,0.0019653]
[1760022762993,0.78124539,121380.0,121370.0,0.0019653]
[1760022763372,0.81139729,121380.0,121370.0,0.0019653]
[1760022769736,0.40975998,121380.0,121370.0,0.0019653]
[1760022769948,0.78941003,121380.0,121370.0,0.0019653]
[1760022770174,0.01762082,121380.0,121370.0,0.25172902]
[1760022770440,0.02336245,121400.0,121380.0,0.16476879]
[1760022770650,0.78263248,121400.0,121380.0,0.24789085]
[1760022770880,0.78263248,121400.0,121390.0,0.2366]
[1760022771142,0.01900791,121400.0,121390.0,0.2366]
[1760022771381,0.04915981,121400.0,121390.0,0.32224]
[1760022772037,0.04915981,121400.0,121380.0,0.24889085]
[1760022772265,0.04915981,121400.0,121390.0,0.32324]
[1760022773738,0.04915981,121400.0,121390.0,0.32424]
[1760022773957,0.04915981,121400.0,121390.0,0.32324]
[1760022774199,0.04915981,121400.0,121390.0,0.32424]
[1760022774430,0.03152709,121400.0,121390.0,0.08768]
[1760022774648,0.03152709,121400.0,121390.0,0.32424]
[1760022775540,0.03152709,121400.0,121390.0,0.08768]
[1760022775772,0.03152709,121400.0,121390.0,0.3242]
[1760022777238,0.00137519,121400.0,121390.0,0.33556027]
[1760022777643,0.00137519,121400.0,121390.0,0.57208027]
[1760022778435,0.00137519,121400.0,121390.0,0.08512206]
[1760022778623,0.4030125,121400.0,121390.0,0.17080206]
[1760022778873,0.4331644,121400.0,121390.0,0.002]
[1760022779051,1.01331516,121400.0,121390.0,0.002]
[1760022779282,0.7731644,121400.0,121390.0,0.23848]
[1760022780151,0.7731644,121400.0,121390.0,0.002]
[1760022780353,0.7731644,121400.0,121390.0,0.01017921]
[1760022780354,0.37152709,121400.0,121390.0,0.01017921]
[1760022780555,0.37152709,121400.0,121390.0,0.23848]
[1760022780797,0.7731644,121400.0,121390.0,0.002]
[1760022781301,1.42945635,121400.0,121390.0,0.002]
[1760022781675,1.02781904,121400.0,121390.0,0.002]
[1760022783162,1.04524124,121400.0,121390.0,0.002]
[1760022783382,1.02781904,121400.0,121390.0,0.002]
[1760022783598,1.04523909,121400.0,121390.0,0.002]
[1760022783857,1.04523909,121400.0,121380.0,0.1764]
[1760022783858,0.19491011,121390.0,121380.0,0.1764]
[1760022784054,0.59654742,121390.0,121380.0,0.1764]
[1760022784713,0.53492369,121380.0,121370.0,0.0009653]
[1760022784924,0.936561,121380.0,121370.0,0.1165653]
[1760022785116,0.77178921,121380.0,121370.0,0.2010053]
[1760022785674,0.936561,121380.0,121370.0,0.2010053]
[1760022785870,0.77178921,121380.0,121370.0,0.2020053]
[1760022786285,0.77178921,121380.0,121370.0,0.2384053]
[1760022786911,0.77178921,121380.0,121370.0,0.2394053]
[1760022788125,0.936561,121380.0,121370.0,0.2394053]
[1760022788719,0.77178921,121380.0,121370.0,0.0029653]
[1760022788924,0.77178921,121380.0,121370.0,0.2394053]
[1760022790063,0.77178921,121380.0,121370.0,0.0029653]
[1760022790283,0.77178921,121380.0,121370.0,0.2394053]
[1760022790695,0.77178921,121380.0,121370.0,0.0029653]
[1760022790873,0.77178921,121380.0,121370.0,0.2394053]
[1760022791219,0.77178921,121380.0,121370.0,0.0029653]
[1760022791441,0.77178921,121380.0,121370.0,0.2394053]
[1760022791657,0.77178921,121380.0,121370.0,0.0029653]
[1760022791881,0.77178921,121380.0,121370.0,0.2394053]
[1760022792937,0.8119519,121380.0,121370.0,0.0029653]
[1760022793143,0.3701519,121380.0,121370.0,0.24721397]
[1760022793457,0.34,121380.0,121370.0,0.08608736]
[1760022793658,0.4417,121390.0,121370.0,0.48731272]
[1760022794205,0.3701519,121390.0,121370.0,0.32252736]
[1760022794411,0.3701519,121390.0,121370.0,0.08608736]
[1760022794617,0.3701519,121390.0,121380.0,0.23644]
[1760022795014,0.93654744,121390.0,121380.0,0.2364]
[1760022795775,0.53491013,121390.0,121380.0,0.2364]
[1760022795981,0.77178921,121390.0,121380.0,0.2364]
[1760022796178,0.77178921,121390.0,121380.0,0.2374]
[1760022796594,0.93654742,121390.0,121380.0,0.2384]
[1760022796805,0.3701519,121390.0,121380.0,0.002]
[1760022797009,0.77178921,121390.0,121380.0,0.2384]
[1760022797801,0.3701519,121390.0,121380.0,0.2384]
[1760022798416,0.53491011,121390.0,121380.0,0.2384]
[1760022798936,0.3701519,121390.0,121380.0,0.2384]
[1760022799138,0.77178921,121390.0,121380.0,0.2384]
[1760022799643,0.3701519,121390.0,121380.0,0.2384]
[1760022799804,0.77178921,121390.0,121380.0,0.2384]
[1760022800428,0.3701519,121390.0,121380.0,0.2384]
[1760022801414,0.0301519,121390.0,121380.0,0.002]
[1760022801631,0.00137519,121400.0,121380.0,0.09120519]
[1760022801821,0.03152709,121400.0,121390.0,0.08568]
[1760022802840,0.03152709,121400.0,121390.0,0.09295202]
[1760022803056,0.00137519,121400.0,121390.0,0.16880206]
[1760022803238,0.00137519,121400.0,121390.0,0.40516206]
[1760022803437,0.00137519,121400.0,121390.0,0.08312206]
[1760022803641,0.00137519,121400.0,121390.0,0.40512206]
[1760022805326,0.00137519,121400.0,121390.0,0.31948206]
[1760022805567,0.00137519,121400.0,121390.0,0.40612206]
[1760022806605,0.00137519,121400.0,121390.0,0.16976206]
[1760022807020,0.00137519,121400.0,121390.0,0.57084027]
[1760022807229,0.00137519,121400.0,121390.0,0.40608206]
[1760022807620,0.00137519,121400.0,121390.0,0.57084027]
[1760022810168,0.00137519,121400.0,121390.0,0.33452027]
[1760022810367,0.00137519,121400.0,121390.0,0.57084027]
[1760022811495,0.00137519,121400.0,121390.0,0.45952025]
[1760022811695,0.00137519,121400.0,121390.0,0.69580025]
[1760022812518,0.00137519,121400.0,121390.0,0.69480025]
[1760022812722,0.00137519,121400.0,121390.0,0.69580025]
[1760022812896,0.00137519,121400.0,121390.0,0.45852025]
[1760022813044,0.00137519,121400.0,121390.0,0.69480025]
[1760022813243,0.00137519,121400.0,121390.0,0.45952025]
[1760022813507,0.00137519,121400.0,121390.0,0.69580025]
[1760022813700,0.00137519,121400.0,121390.0,0.95280025]
[1760022813904,0.00137519,121400.0,121390.0,1.04044025]
[1760022814351,0.00137519,121400.0,121390.0,1.03844025]
[1760022814684,0.00137519,121400.0,121390.0,1.04044025]
[1760022817279,0.06619503,121430.0,121420.0,0.1647175]
[1760022817586,0.06619503,121430.0,121420.0,0.56971956]
[1760022818150,0.07652377,121430.0,121420.0,0.16876206]
[1760022818296,0.01032874,121430.0,121420.0,0.16876206]
[1760022818480,0.40163731,121430.0,121420.0,0.32288]
[1760022818692,0.41914678,121430.0,121420.0,0.32288]
[1760022819125,0.01750947,121430.0,121420.0,0.32288]
[1760022819340,0.01750947,121430.0,121420.0,0.23724]
[1760022819543,0.01750947,121430.0,121420.0,0.32288]
[1760022819920,0.02778143,121430.0,121420.0,0.32288]
[1760022820131,0.01027196,121430.0,121420.0,0.32288]
[1760022820333,0.34,121430.0,121420.0,0.32288]
[1760022820554,0.35027196,121430.0,121420.0,0.32288]
[1760022820757,0.35027196,121430.0,121420.0,0.32284]
[1760022821069,0.35027196,121430.0,121420.0,0.16976206]
[1760022821295,0.35027196,121430.0,121420.0,0.08412206]
[1760022821457,0.35027196,121430.0,121420.0,0.16976206]
[1760022821661,0.35027196,121430.0,121420.0,0.40596206]
[1760022822125,0.65105917,121430.0,121420.0,0.08412206]
[1760022822276,0.81576311,121430.0,121420.0,0.32284]
[1760022823050,0.8173064,121430.0,121420.0,0.32284]
[1760022824279,0.65260246,121430.0,121420.0,0.32284]
[1760022824483,0.65260246,121430.0,121420.0,0.3228]
[1760022824693,0.8173064,121430.0,121420.0,0.3228]
[1760022825113,0.8173064,121430.0,121420.0,0.08664]
[1760022825343,0.8173064,121430.0,121420.0,0.3228]
[1760022825570,0.35181525,121430.0,121420.0,0.3228]
[1760022825796,0.8173064,121430.0,121420.0,0.3228]
[1760022826663,0.65260246,121430.0,121420.0,0.3228]
[1760022827167,0.8173064,121430.0,121420.0,0.001]
[1760022827416,0.5340315,121430.0,121420.0,0.3228]
[1760022827633,0.83481871,121430.0,121420.0,0.08664]
[1760022827837,0.65260246,121430.0,121420.0,0.3228]
[1760022828274,0.65260246,121430.0,121420.0,0.08664]
[1760022828487,0.65260246,121430.0,121420.0,0.3228]
[1760022828908,0.8173064,121430.0,121420.0,0.3228]
[1760022829153,0.8173064,121430.0,121420.0,0.08664]
[1760022829314,0.8173064,121430.0,121420.0,0.32276]
[1760022829749,0.8173064,121430.0,121420.0,0.08664]
[1760022829971,0.8173064,121430.0,121420.0,0.32276]
[1760022830394,0.8173064,121430.0,121420.0,0.08664]
[1760022830588,0.8173064,121430.0,121420.0,0.32276]
[1760022830795,0.8348282,121430.0,121420.0,0.32276]
[1760022831905,1.18585541,121430.0,121420.0,0.001]
[1760022832108,1.40469411,121430.0,121420.0,0.001]
[1760022832314,1.32469731,121430.0,121420.0,0.01452]
[1760022832512,0.8897105,121430.0,121420.0,0.001]
[1760022832724,0.8897105,121430.0,121420.0,0.10224]
[1760022833017,0.69485466,121430.0,121420.0,0.0075399]
[1760022833265,0.8595586,121430.0,121420.0,0.1952999]
[1760022833477,0.34,121420.0,121410.0,0.08564]
[1760022833699,0.50049613,121430.0,121410.0,0.32176]
[1760022833914,0.4932962,121430.0,121410.0,0.40488206]
[1760022834578,0.8332962,121430.0,121420.0,0.001]
[1760022834786,0.66858964,121430.0,121420.0,0.00603248]
[1760022835003,0.53250637,121430.0,121420.0,0.00503248]
[1760022835214,0.83329358,121430.0,121420.0,0.00503248]
[1760022837077,0.83329358,121430.0,121410.0,0.40488206]
[1760022837270,0.83329358,121430.0,121420.0,0.001]
[1760022837716,0.66858964,121430.0,121420.0,0.001]
[1760022837930,0.36780243,121430.0,121420.0,0.24213571]
[1760022838111,0.66858964,121430.0,121420.0,0.23608]
[1760022839005,0.83329358,121430.0,121420.0,0.23608]
[1760022839247,0.83329358,121430.0,121420.0,0.32172]
[1760022839463,0.83483687,121430.0,121420.0,0.32172]
[1760022839982,0.51295337,121420.0,121390.0,0.15719052]
[1760022840190,0.76631906,121400.0,121390.0,0.11536316]
[1760022840419,1.17422427,121400.0,121390.0,0.0322411]
[1760022840671,1.12398427,121400.0,121390.0,0.1327611]
[1760022840872,1.14871914,121400.0,121390.0,0.1327611]
[1760022841489,1.14871914,121400.0,121390.0,0.15473874]
[1760022841716,1.14871914,121400.0,121390.0,0.1327611]
[1760022841919,1.14871914,121400.0,121390.0,0.1337611]
[1760022842121,0.97467324,121400.0,121390.0,0.2406811]
[1760022844214,0.95700803,121400.0,121390.0,0.2406811]
[1760022844854,0.95700803,121400.0,121390.0,0.2693211]
[1760022846959,0.36473487,121400.0,121390.0,0.2693211]
[1760022847168,0.34,121400.0,121390.0,0.2693211]
[1760022847897,0.34,121400.0,121390.0,0.35244316]
[1760022849042,0.93227316,121400.0,121390.0,0.35244316]
[1760022849260,0.93227316,121400.0,121390.0,0.43808316]
[1760022849650,0.76752852,121400.0,121390.0,0.43808316]
[1760022850036,0.34,121400.0,121390.0,0.20200316]
[1760022850231,0.34,121400.0,121390.0,0.43804316]
[1760022850860,0.34,121400.0,121390.0,0.20200316]
[1760022851029,0.50474464,121400.0,121390.0,0.43804316]
[1760022851475,0.50474464,121400.0,121390.0,0.11636316]
[1760022851689,0.50474464,121400.0,121390.0,0.43804316]
[1760022852101,0.93227316,121400.0,121390.0,0.43804316]
[1760022852779,1.51794168,121400.0,121390.0,0.0332411]
[1760022853013,1.94725244,121400.0,121390.0,0.0332411]
[1760022853197,1.96488805,121400.0,121390.0,0.0332411]
[1760022853485,1.72884805,121400.0,121390.0,0.0332411]
[1760022853705,1.72884805,121400.0,121390.0,0.0322411]
[1760022853706,1.96488805,121400.0,121390.0,0.0322411]
[1760022853917,1.96488805,121400.0,121390.0,0.0332411]
[1760022854348,1.64885125,121400.0,121390.0,0.0322411]
[1760022854579,1.88489125,121400.0,121390.0,0.0322411]
[1760022856237,1.64885125,121400.0,121390.0,0.0322411]
[1760022856447,1.28338506,121400.0,121390.0,0.0322411]
[1760022857083,1.37422802,121400.0,121390.0,0.0322411]
[1760022858467,1.84076607,121400.0,121390.0,0.0322411]
[1760022859538,1.60472607,121400.0,121390.0,0.0322411]
[1760022859738,1.84076607,121400.0,121390.0,0.0322411]
[1760022860389,1.60472607,121400.0,121390.0,0.0322411]
[1760022860600,1.84076607,121400.0,121390.0,0.0322411]
[1760022861526,1.76754607,121400.0,121390.0,0.0322411]
[1760022862030,1.53150607,121400.0,121390.0,0.0322411]
[1760022862352,2.24320862,121400.0,121390.0,0.0322411]
[1760022862556,2.31642862,121400.0,121390.0,0.0322411]
[1760022863307,2.08038862,121400.0,121390.0,0.0322411]
[1760022863468,2.31642862,121400.0,121390.0,0.0322411]
[1760022863910,2.33828039,121400.0,121390.0,0.0322411]
[1760022864051,1.89648039,121400.0,121390.0,0.0322411]
[1760022864504,2.64675352,121400.0,121390.0,0.0322411]
[1760022864703,2.88279352,121400.0,121390.0,0.0322411]
[1760022864847,2.91210461,121400.0,121390.0,0.0322411]
[1760022865213,2.93965284,121400.0,121390.0,0.0322411]
[1760022865429,2.93961284,121400.0,121390.0,0.0322411]
[1760022865637,3.01960964,121400.0,121390.0,0.0322411]
[1760022865839,3.06357284,121400.0,121390.0,0.0322411]
[1760022866211,3.03426175,121400.0,121390.0,0.0322411]
[1760022867480,2.13107068,121400.0,121390.0,0.0322411]
[1760022867663,3.03426175,121400.0,121390.0,0.0322411]
[1760022868029,3.11994175,121400.0,121390.0,0.0322411]
[1760022868451,2.79826175,121400.0,121390.0,0.0322411]
[1760022868658,3.11994175,121400.0,121390.0,0.0322411]
[1760022869225,2.79826175,121400.0,121390.0,0.0322411]
[1760022869465,3.11994175,121400.0,121390.0,0.0322411]
[1760022869912,0.58431011,121390.0,121380.0,0.00137531]
[1760022870112,1.9855862,121390.0,121380.0,0.00145869]
[1760022870312,2.1063462,121390.0,121380.0,0.00145869]
[1760022870695,2.10964536,121390.0,121380.0,0.00145869]
[1760022870983,1.49258487,121390.0,121380.0,0.00145869]
[1760022871213,1.77724328,121390.0,121380.0,0.00145869]
[1760022871435,1.49184328,121390.0,121380.0,0.00145869]
[1760022871873,1.72784328,121390.0,121380.0,0.00145869]
[1760022872385,1.77180648,121390.0,121380.0,0.00145869]
[1760022873225,0.64845384,121390.0,121380.0,0.00145869]
[1760022873449,0.8561105,121390.0,121380.0,0.00145869]
[1760022873699,1.1108315,121390.0,121380.0,0.00145869]
[1760022873929,1.41189519,121390.0,121380.0,0.00145869]
[1760022874338,1.25358709,121390.0,121380.0,0.00145869]
[1760022874577,1.48958709,121390.0,121380.0,0.00145869]
[1760022875708,1.52696709,121390.0,121380.0,0.00145869]
[1760022876158,1.42216373,121390.0,121380.0,0.00145869]
[1760022876365,1.65816373,121390.0,121380.0,0.00145869]
[1760022877107,1.57816693,121390.0,121380.0,0.00145869]
[1760022877524,1.34216693,121390.0,121380.0,0.00145869]
[1760022877734,1.57816693,121390.0,121380.0,0.00145869]
[1760022878138,1.34216693,121390.0,121380.0,0.00145869]
[1760022878332,1.57816693,121390.0,121380.0,0.00145869]
[1760022878780,1.65816373,121390.0,121380.0,0.00145869]
[1760022879975,1.70212693,121390.0,121380.0,0.00145869]
[1760022880183,2.06393013,121390.0,121380.0,0.00145869]
[1760022880743,2.06389013,121390.0,121380.0,0.00145869]
[1760022881414,1.82793013,121390.0,121380.0,0.00145869]
[1760022881542,2.06389013,121390.0,121380.0,0.00145869]
[1760022882208,1.82793013,121390.0,121380.0,0.00145869]
[1760022882431,1.99067013,121390.0,121380.0,0.00145869]
[1760022882598,1.75471013,121390.0,121380.0,0.00145869]
[1760022882810,2.08765919,121390.0,121380.0,0.00145869]
[1760022883593,2.15066105,121390.0,121380.0,0.00145869]
[1760022884308,1.95003675,121390.0,121380.0,0.00145869]
[1760022884676,1.92683769,121390.0,121380.0,0.00145869]
[1760022884906,1.89747121,121390.0,121380.0,0.00145869]
[1760022885879,1.66151121,121390.0,121380.0,0.00145869]
[1760022886117,1.89747121,121390.0,121380.0,0.00145869]
[1760022886992,1.58772121,121390.0,121380.0,0.00145869]
[1760022887223,1.82364121,121390.0,121380.0,0.00145869]
[1760022887893,1.89598121,121390.0,121380.0,0.00145869]
[1760022888566,1.82364121,121390.0,121380.0,0.00145869]
[1760022888778,1.90363801,121390.0,121380.0,0.00145869]
[1760022889022,2.05910007,121390.0,121380.0,0.00145869]
[1760022889243,2.06239903,121390.0,121380.0,0.00145869]
[1760022889680,1.82647903,121390.0,121380.0,0.00145869]
[1760022889890,2.06239903,121390.0,121380.0,0.00145869]
[1760022890339,0.91083595,121390.0,121380.0,0.00145869]
[1760022890566,1.32633619,121390.0,121380.0,0.00145869]
[1760022890780,1.38016121,121390.0,121380.0,0.00145869]
[1760022891010,1.40957617,121390.0,121380.0,0.00145869]
[1760022892350,1.38016121,121390.0,121380.0,0.00145869]
[1760022892552,1.31715935,121390.0,121380.0,0.00145869]
[1760022892779,1.3465884,121390.0,121380.0,0.00145869]
[1760022892991,1.38983184,121390.0,121380.0,0.00145869]
[1760022893200,1.36040279,121390.0,121380.0,0.00145869]
[1760022894055,1.12448279,121390.0,121380.0,0.00145869]
[1760022894267,1.36040279,121390.0,121380.0,0.00145869]
[1760022894478,1.38984526,121390.0,121380.0,0.00145869]
[1760022894684,1.36040279,121390.0,121380.0,0.00145869]
[1760022895537,1.12448279,121390.0,121380.0,0.00145869]
[1760022895764,1.15392564,121390.0,121380.0,0.00145869]
[1760022895959,1.219359,121390.0,121380.0,0.00145869]
[1760022896187,0.983479,121390.0,121380.0,0.00145869]
[1760022896399,1.219359,121390.0,121380.0,0.00145869]
[1760022896507,1.268159,121390.0,121380.0,0.00145869]
[1760022896930,1.302599,121390.0,121380.0,0.00145869]
[1760022897190,1.32143773,121390.0,121380.0,0.00145869]
[1760022897564,1.29024093,121390.0,121380.0,0.00145869]
[1760022897964,0.03970489,121390.0,121380.0,0.00145869]
[1760022898169,0.60596618,121390.0,121380.0,0.00145869]
[1760022898779,0.94596618,121390.0,121380.0,0.00145869]
[1760022899202,0.92388425,121390.0,121380.0,0.00145869]
[1760022900413,0.94596618,121390.0,121380.0,0.00145869]
[1760022900609,0.5444631,121390.0,121380.0,0.00145869]
[1760022900844,0.94596618,121390.0,121380.0,0.00145869]
[1760022901067,0.92388425,121390.0,121380.0,0.00145869]
[1760022901270,0.99476618,121390.0,121380.0,0.00145869]
[1760022901684,1.26075808,121390.0,121380.0,0.00145869]
[1760022901863,1.24113773,121390.0,121380.0,0.00145869]
[1760022902065,1.4548958,121390.0,121380.0,0.00145869]
[1760022902293,1.53801786,121390.0,121380.0,0.00145869]
[1760022902680,1.58198106,121390.0,121380.0,0.00145869]
[1760022903101,1.53801786,121390.0,121380.0,0.00145869]
[1760022903681,1.58198106,121390.0,121380.0,0.00145869]
[1760022904540,1.53801786,121390.0,121380.0,0.00145869]
[1760022904920,1.58198106,121390.0,121380.0,0.00145869]
[1760022905187,1.58741786,121390.0,121380.0,0.00145869]
[1760022905594,1.63138106,121390.0,121380.0,0.00145869]
[1760022905796,1.60193821,121390.0,121380.0,0.00145869]
[1760022906513,1.42764224,121390.0,121380.0,0.00145869]
[1760022906742,1.66348224,121390.0,121380.0,0.00145869]
[1760022908368,1.66348224,121390.0,121370.0,0.0004]
[1760022908369,1.30777795,121380.0,121370.0,0.0004]
[1760022908573,2.23023123,121380.0,121370.0,0.0004]
[1760022908777,2.32299443,121380.0,121370.0,0.0004]
[1760022908981,1.99383135,121380.0,121370.0,0.0004]
[1760022909623,1.71402815,121380.0,121370.0,0.0004]
[1760022909832,1.94986815,121380.0,121370.0,0.0004]
[1760022910088,1.94982815,121380.0,121370.0,0.0004]
[1760022910704,1.71402815,121380.0,121370.0,0.0004]
[1760022910916,1.94986815,121380.0,121370.0,0.0004]
[1760022911123,1.71732731,121380.0,121370.0,0.0004]
[1760022911330,1.95312731,121380.0,121370.0,0.0004]
[1760022911531,1.71732731,121380.0,121370.0,0.0004]
[1760022911716,1.56186525,121380.0,121370.0,0.0004]
[1760022911919,1.22221071,121380.0,121370.0,0.0004]
[1760022912121,1.62371379,121380.0,121370.0,0.0004]
[1760022912329,1.20975775,121380.0,121370.0,0.0004]
[1760022912534,1.85447633,121380.0,121370.0,0.0004]
[1760022912736,1.70197229,121380.0,121370.0,0.0004]
[1760022912942,1.93777229,121380.0,121370.0,0.0004]
[1760022913157,1.53626921,121380.0,121370.0,0.0004]
[1760022913532,1.30046921,121380.0,121370.0,0.0004]
[1760022913711,1.53626921,121380.0,121370.0,0.0004]